bitfinex/quotes_ETHUSD_20220106
["timestamp","ask_amount","ask_price","bid_price","bid_amount"]
[1641444327780,1.26304834,3426.2,3425.2,0.00909478]
[1641444328379,2.9,3426.3,3425.2,0.00909478]
[1641444328589,2.4,3426.3,3425.3,1.24872619]
[1641444328984,2.4,3426.3,3425.4,0.00795793]
[1641444330025,2.4,3426.3,3425.5,0.72973]
[1641444330223,2.4,3426.3,3425.6,0.72975]
[1641444330428,2.4,3426.3,3425.6,0.00682108]
[1641444330627,4.0662,3427.0,3426.6,1.56457144]
[1641444330828,0.3,3427.0,3425.6,0.00682108]
[1641444331133,1.31800415,3426.9,3425.6,0.00682108]
[1641444331329,1.61800415,3426.9,3425.6,0.00682108]
[1641444331531,1.91800415,3426.9,3425.6,0.00682108]
[1641444331732,1.13991358,3426.3,3425.6,0.00682108]
[1641444332133,0.6,3426.9,3425.2,0.00909478]
[1641444332333,0.6,3426.9,3425.5,0.7298]
[1641444332633,1.01290704,3427.5,3425.6,0.00682108]
[1641444332634,0.01290704,3427.5,3425.6,0.00682108]
[1641444332833,0.51290704,3427.5,3426.0,1.18548235]
[1641444333081,0.00113685,3427.0,3426.0,1.18548235]
[1641444333283,0.00113685,3427.0,3426.1,0.00397896]
[1641444334084,1.23722306,3426.7,3426.1,0.00397896]
[1641444334483,1.23722306,3426.7,3425.9,0.00511581]
[1641444335985,0.00113685,3427.0,3425.9,0.00511581]
[1641444336588,0.73093635,3427.0,3425.7,0.00625266]
[1641444336825,1.5,3426.5,3425.7,0.00625266]
[1641444337126,1.10263661,3426.3,3425.4,0.00795793]
[1641444337429,1.23726579,3425.6,3425.4,0.00795793]
[1641444337625,0.3,3426.3,3425.4,0.00795793]
[1641444337828,4.1821,3426.4,3424.5,0.01307374]
[1641444338028,0.6,3426.3,3424.7,0.72989]
[1641444338229,0.3,3426.3,3424.7,0.72989]
[1641444338431,10.2531,3426.9,3424.8,4.45501041]
[1641444338630,1.5,3425.5,3424.8,6.27224708]
[1641444338834,1.5,3425.5,3425.3,1.21568788]
[1641444339232,1.5,3425.5,3425.4,0.00795793]
[1641444339434,2.1,3425.5,3425.4,0.00795793]
[1641444339631,2.1,3425.5,3423.9,0.345]
[1641444339632,3.03714421,3425.5,3423.9,0.345]
[1641444339832,1.17899267,3424.7,3424.0,0.01591586]
[1641444340033,3.7243,3425.4,3424.0,0.36091586]
[1641444340232,1.1431,3426.1,3425.9,0.17139563]
[1641444340434,1.1431,3426.1,3424.4,1.42153043]
[1641444340435,0.3,3425.5,3424.5,6.55]
[1641444340677,11.4,3426.0,3424.5,6.55]
[1641444340878,0.7300573,3425.8,3424.4,1.42153043]
[1641444341076,1.2663444,3425.5,3424.4,1.42153043]
[1641444341278,1.2663444,3425.5,3424.5,0.01307374]
[1641444341674,1.5,3425.0,3424.5,0.01307374]
[1641444342277,1.5,3425.0,3424.5,0.35807374]
[1641444342682,1.5,3425.0,3424.6,0.01250532]
[1641444344927,1.5,3425.0,3423.6,1.46013]
[1641444344928,0.01223104,3424.9,3424.2,0.01477901]
[1641444345125,1.3800217,3424.4,3424.2,0.01477901]
[1641444345326,0.01223104,3424.9,3423.1,0.73028]
[1641444345327,0.01223104,3424.9,3423.1,0.75131167]
[1641444345526,0.01223104,3424.9,3424.0,1.43655386]
[1641444345726,0.6,3425.0,3424.0,1.43655386]
[1641444345925,0.3,3425.0,3424.1,0.01534743]
[1641444346127,0.6,3425.2,3424.1,0.01534743]
[1641444346326,1.27426659,3424.5,3424.1,0.01534743]
[1641444346825,1.5,3424.4,3423.2,0.02046324]
[1641444347831,1.5,3424.4,3423.8,1.23941531]
[1641444348388,1.5,3424.4,3423.9,0.01648428]
[1641444349196,2.84602241,3424.4,3423.9,0.01648428]
[1641444349392,3.14602241,3424.4,3423.9,0.01648428]
[1641444349593,3.14602241,3424.4,3423.2,0.02046324]
[1641444349594,0.7303833,3424.3,3423.2,0.02046324]
[1641444349794,0.3,3424.2,3422.9,0.00576852]
[1641444349991,0.3,3424.2,3422.5,0.00804221]
[1641444349992,0.30162099,3424.2,3422.5,0.00804221]
[1641444350192,0.00105257,3424.1,3422.5,0.00804221]
[1641444350393,1.5,3423.4,3422.5,0.00804221]
[1641444350593,1.27505921,3423.2,3422.5,0.00804221]
[1641444350796,1.27505921,3423.2,3422.1,0.15239509]
[1641444350797,1.5,3423.4,3422.2,0.74022748]
[1641444351192,1.5,3423.4,3422.3,0.00917906]
[1641444351854,1.5,3423.4,3422.6,0.01251213]
[1641444352039,1.5,3423.4,3422.7,0.345]
[1641444352238,1.5,3423.4,3422.7,0.40221319]
[1641444352438,1.5,3423.4,3422.8,0.00633694]
[1641444352839,1.5,3423.4,3422.7,0.35164477]
[1641444353037,1.5,3423.4,3422.9,0.73016]
[1641444353239,1.5,3423.4,3422.2,0.39530783]
[1641444353240,1.06155483,3423.4,3422.2,0.39530783]
[1641444353438,1.09428496,3422.9,3422.2,0.345]
[1641444353839,1.31661559,3422.3,3422.1,0.15239509]
[1641444354039,1.28722577,3422.8,3422.1,0.15239509]
[1641444354239,1.28722577,3422.8,3422.2,0.00625266]
[1641444354443,1.5,3422.5,3422.2,0.00625266]
[1641444354841,1.5,3422.5,3422.0,0.00738951]
[1641444357286,1.5,3422.5,3422.0,0.86655009]
[1641444357488,1.5,3422.5,3422.1,0.05030783]
[1641444357686,1.5,3422.5,3422.1,0.05712891]
[1641444357886,1.5,3422.5,3422.1,0.57128949]
[1641444358087,1.5,3422.5,3422.4,16.63642253]
[1641444358487,0.4337,3422.5,3422.4,21.44153834]
[1641444358688,0.4337,3422.5,3422.4,17.94153834]
[1641444358887,0.4337,3422.5,3422.4,3.19153834]
[1641444359087,0.4337,3422.5,3422.4,0.81927639]
[1641444359327,0.4337,3422.5,3422.4,0.51927639]
[1641444359527,1.02667445,3423.2,3422.9,0.51416058]
[1641444359927,1.02667445,3423.2,3423.0,0.00170527]
[1641444360328,17.26156332,3423.1,3423.0,0.70719869]
[1641444360527,18.25,3423.0,3421.7,0.1525101]
[1641444360930,18.25,3423.0,3421.8,0.00682108]
[1641444361128,18.55,3423.0,3421.8,0.00682108]
[1641444361328,18.25,3423.0,3421.8,0.73740108]
[1641444361531,1.16786914,3422.5,3421.8,1.03740108]
[1641444361832,18.25,3423.0,3421.9,0.00625266]
[1641444362832,2.80391677,3422.9,3421.9,0.00625266]
[1641444365787,1.230621,3423.4,3421.9,0.00625266]
[1641444365989,0.01289112,3424.3,3422.0,16.55]
[1641444366188,3.0539143,3424.6,3422.6,0.01202252]
[1641444366389,0.00113685,3423.5,3422.6,0.01202252]
[1641444366587,0.00113685,3423.5,3422.7,0.00341054]
[1641444367433,0.00113685,3423.5,3422.4,0.30511581]
[1641444367628,0.00113685,3423.5,3422.6,0.00397897]
[1641444367629,1.02507488,3423.2,3422.6,0.00397897]
[1641444367829,1.02507488,3423.2,3422.5,0.00454739]
[1641444368029,1.20596629,3422.9,3422.2,0.00625266]
[1641444368236,1.20596629,3422.9,3422.3,0.00568424]
[1641444368435,1.20596629,3422.9,3422.2,0.00625266]
[1641444368634,1.20596629,3422.9,3422.1,0.00682108]
[1641444368837,1.40681608,3422.6,3422.1,0.00682108]
[1641444369039,0.5,3423.1,3421.9,0.00795793]
[1641444369236,3.8953,3423.3,3422.0,0.0129714]
[1641444369438,0.00113685,3423.5,3422.0,0.0129714]
[1641444369636,0.00113685,3423.5,3422.1,0.00682108]
[1641444370143,1.27473091,3423.1,3422.1,0.00682108]
[1641444370585,1.46000556,3423.2,3422.1,0.00682108]
[1641444370586,1.17478283,3422.5,3422.1,0.00682108]
[1641444370790,1.5,3422.4,3421.7,0.00909478]
[1641444370988,1.8,3422.4,3421.6,0.0096632]
[1641444371185,5.21184627,3421.7,3421.6,0.0096632]
[1641444371390,5.21184627,3421.7,3421.5,0.01023162]
[1641444371591,10.2,3421.6,3420.6,0.15255767]
[1641444371792,10.2,3421.6,3420.4,1.18087]
[1641444371793,4.6,3421.6,3420.4,1.18087]
[1641444371995,1.26184627,3421.7,3420.7,0.00454739]
[1641444372190,1.34628898,3421.1,3420.7,0.00454739]
[1641444372797,1.02770029,3421.0,3420.7,0.00454739]
[1641444372994,1.34628898,3421.1,3420.7,0.00454739]
[1641444373293,0.00341054,3422.1,3420.7,0.00454739]
[1641444373500,1.5,3421.0,3420.7,0.00454739]
[1641444373693,14.57086266,3420.8,3420.7,0.00454739]
[1641444374093,15.78375301,3420.8,3420.7,0.00454739]
[1641444374534,11.81539088,3420.8,3420.7,0.00454739]
[1641444374733,13.5206666,3420.8,3420.7,0.00454739]
[1641444374934,13.5206666,3420.8,3420.4,0.45]
[1641444374935,0.7312175,3420.6,3419.9,6.17]
[1641444375134,0.7312175,3420.6,3419.1,6.61270826]
[1641444375135,1.41905818,3419.2,3419.1,6.61270826]
[1641444375344,8.1,3419.2,3419.1,6.61270826]
[1641444375535,15.8,3419.1,3418.3,6.94]
[1641444375734,1.42145685,3418.9,3418.3,6.94]
[1641444375937,1.42145685,3418.9,3418.6,6.17]
[1641444376135,1.72145685,3418.9,3418.6,4.9198]
[1641444376339,18.25,3418.7,3418.3,6.94]
[1641444376536,0.645,3418.6,3418.3,6.94]
[1641444376737,0.645,3418.6,3418.2,6.41774755]
[1641444376738,18.25,3418.5,3418.2,6.41774755]
[1641444376940,1.39924195,3418.1,3417.5,6.17]
[1641444377140,0.7318311,3418.0,3417.5,6.17]
[1641444377441,0.7318311,3418.0,3417.6,4.739e-05]
[1641444377442,18.595,3417.9,3417.6,4.739e-05]
[1641444377642,1.2886447,3416.3,3416.0,6.94]
[1641444377845,1.2886447,3416.3,3416.0,13.11]
[1641444378081,19.44777104,3416.2,3416.1,0.00852635]
[1641444378383,1.5,3416.2,3416.1,0.00852635]
[1641444379186,2.43078308,3416.2,3416.1,18.30030783]
[1641444379385,3.7212,3417.7,3416.1,18.3126428]
[1641444379587,1.20733518,3417.8,3416.1,18.3126428]
[1641444379785,1.20733518,3417.8,3416.3,0.73167]
[1641444380187,1.20733518,3417.8,3416.4,0.05712891]
[1641444380393,1.20733518,3417.8,3416.4,0.35712891]
[1641444380587,1.20733518,3417.8,3416.5,0.00625266]
[1641444381086,1.27120938,3417.6,3416.5,0.00625266]
[1641444381286,1.11947607,3417.0,3416.5,0.00625266]
[1641444381833,1.11947607,3417.0,3415.3,1.47672374]
[1641444382134,1.27697747,3416.0,3415.4,0.01250532]
[1641444382335,1.00082901,3416.4,3415.4,0.01250532]
[1641444382535,1.00082901,3416.4,3415.3,0.01307374]
[1641444382734,1.00082901,3416.4,3415.4,0.00084206]
[1641444382942,0.6,3417.0,3415.4,0.00084206]
[1641444383135,0.345,3417.3,3415.5,0.01193689]
[1641444383336,1.18543843,3416.7,3415.6,1.15140043]
[1641444383538,1.18543843,3416.7,3415.5,0.01193689]
[1641444383738,1.18543843,3416.7,3415.7,0.01080004]
[1641444383937,1.06400157,3416.6,3415.5,0.01193689]
[1641444385337,1.66400157,3416.6,3415.5,0.01193689]
[1641444386182,1.08576138,3415.8,3415.5,0.01193689]
[1641444387185,1.68576138,3415.8,3415.5,0.01193689]
[1641444387391,1.68576138,3415.8,3414.3,0.1528337]
[1641444387392,18.2,3415.7,3414.3,0.1528337]
[1641444387585,0.345,3415.6,3413.8,5.3194245]
[1641444387789,1.11,3415.0,3414.4,0.00625266]
[1641444387984,1.41,3415.0,3414.4,0.00625266]
[1641444388188,1.71,3415.0,3413.3,0.01250532]
[1641444388591,1.4424703,3414.1,3413.2,0.73236]
[1641444388791,1.09321667,3414.3,3413.1,0.74607216]
[1641444388992,1.71,3415.0,3413.3,0.01250532]
[1641444389191,1.71,3415.0,3413.2,0.01307374]
[1641444389631,3.81,3415.0,3413.3,0.05065947]
[1641444389831,3.81,3415.0,3413.8,1.41472283]
[1641444389832,1.33297646,3414.8,3413.8,1.41472283]
[1641444390030,1.33297646,3414.8,3413.5,0.73232]
[1641444390031,1.33297646,3414.8,3413.6,0.3]
[1641444390232,1.33297646,3414.8,3413.9,0.00909478]
[1641444390430,1.33297646,3414.8,3413.7,0.01023162]
[1641444390630,1.33297646,3414.8,3413.6,0.31080005]
[1641444390836,1.33297646,3414.8,3413.7,0.01023162]
[1641444391231,1.33297646,3414.8,3413.6,0.01080005]
[1641444391531,0.33297646,3414.8,3413.6,0.01080005]
[1641444392737,0.33297646,3414.8,3413.7,0.01295988]
[1641444393179,0.33297646,3414.8,3413.8,0.0096632]
[1641444393382,0.33297646,3414.8,3414.0,0.73223]
[1641444393582,1.99112067,3415.0,3414.0,0.73223]
[1641444393781,1.99112067,3415.0,3414.1,0.00795793]
[1641444393979,1.69112067,3415.0,3414.1,0.00795793]
[1641444394184,1.69112067,3415.0,3414.1,4.30787576]
[1641444394381,1.18472067,3415.0,3414.6,0.01234945]
[1641444394581,0.00113685,3415.7,3415.0,1.49475646]
[1641444394782,0.00113685,3415.7,3415.0,2.22675646]
[1641444394979,0.00113685,3415.7,3415.1,0.0022737]
[1641444395582,1.23603066,3415.6,3415.1,0.0022737]
[1641444395785,1.23603066,3415.6,3414.9,0.00341054]
[1641444395988,1.23603066,3415.6,3414.7,0.00454739]
[1641444396379,0.3,3415.5,3414.7,0.00454739]
[1641444396580,1.23203912,3415.0,3414.0,1.2230497]
[1641444396832,1.23203912,3415.0,3414.0,2.6873697]
[1641444397029,1.23203912,3415.0,3414.1,0.00795793]
[1641444397430,1.23203912,3415.0,3414.1,1.00795793]
[1641444397834,1.23203912,3415.0,3414.2,0.00738951]
[1641444398031,0.3,3415.5,3414.2,0.00738951]
[1641444398934,1.66056784,3415.0,3413.9,0.00909478]
[1641444399336,1.30330154,3414.2,3413.9,0.00909478]
[1641444399636,1.60330154,3414.2,3413.8,0.0096632]
[1641444399835,1.90330154,3414.2,3413.8,0.0096632]
[1641444403483,2.63590034,3414.2,3413.8,0.0096632]
[1641444403692,2.63590034,3414.2,3413.9,0.00105559]
[1641444404088,2.63590034,3414.2,3414.0,0.00852635]
[1641444404346,1.90330154,3414.2,3414.0,0.00852635]
[1641444404534,6.9159395,3414.9,3414.0,0.00852635]
[1641444404735,1.23252,3415.2,3414.0,0.00852635]
[1641444404736,0.5,3415.2,3414.0,0.00852635]
[1641444404936,6.8223529,3415.5,3414.0,0.00852635]
[1641444405135,3.8031,3415.5,3414.0,0.00852635]
[1641444405336,3.6632,3415.6,3414.0,0.00852635]
[1641444405736,15.77261783,3414.1,3414.0,0.00852635]
[1641444406540,1.0868786,3414.6,3414.0,0.00852635]
[1641444406938,1.6868786,3414.6,3414.0,0.00852635]
[1641444407137,1.3868786,3414.6,3414.0,0.00852635]
[1641444407540,16.38473698,3414.1,3414.0,0.00852635]
[1641444407741,16.68473698,3414.1,3414.0,2.635e-05]
[1641444407941,18.2,3414.0,3413.9,5.559e-05]
[1641444408181,19.545,3414.0,3413.9,5.559e-05]
[1641444408386,19.545,3414.0,3411.6,1.85367569]
[1641444408590,19.2,3413.9,3411.6,1.85367569]
[1641444408787,0.73301,3412.8,3411.7,0.01307374]
[1641444408995,1.26824877,3412.6,3411.7,7.374e-05]
[1641444409186,1.26824877,3412.6,3411.6,1.85367569]
[1641444409187,18.2,3412.4,3411.6,0.96324943]
[1641444409385,0.345,3412.3,3411.6,0.35134943]
[1641444409586,0.345,3412.3,3410.8,5.3194245]
[1641444409587,1.22719208,3411.0,3410.8,5.3194245]
[1641444409889,1.52719208,3411.0,3410.9,0.00454739]
[1641444410087,0.3,3411.0,3410.9,0.00454739]
[1641444410386,1.4663204,3411.8,3410.5,0.00682108]
[1641444410585,18.20284211,3412.2,3410.5,0.00682108]
[1641444410788,0.30170527,3412.0,3410.5,0.00682108]
[1641444410984,0.00227369,3412.1,3410.5,0.00682108]
[1641444411186,1.08183722,3411.9,3410.5,0.00682108]
[1641444411387,1.13934407,3411.4,3410.5,0.00682108]
[1641444411595,1.06989382,3411.3,3410.5,0.00682108]
[1641444411830,1.13934407,3411.4,3410.5,0.00682108]
[1641444412032,1.19266147,3410.8,3410.5,0.00682108]
[1641444412234,0.7330822,3411.8,3410.5,0.00682108]
[1641444412636,1.40941233,3410.8,3410.5,0.00682108]
[1641444413036,1.70941233,3410.8,3410.4,0.00738951]
[1641444413638,1.42309806,3410.7,3410.4,0.00738951]
[1641444414143,1.42309806,3410.7,3410.5,0.001425]
[1641444414338,0.345,3411.5,3410.5,0.001425]
[1641444414539,0.645,3411.5,3410.6,0.00625266]
[1641444414738,0.345,3411.5,3410.6,0.00625266]
[1641444414938,0.31254142,3411.4,3410.6,0.00625266]
[1641444415139,4.81055162,3411.4,3410.6,0.00625266]
[1641444415340,0.35740577,3411.3,3410.6,0.00625266]
[1641444415578,1.30940678,3411.2,3410.6,0.00625266]
[1641444415785,0.345,3411.1,3410.6,0.00625266]
[1641444415989,0.645,3411.1,3410.6,0.00625266]
[1641444416187,1.30287713,3411.0,3410.6,0.00625266]
[1641444416387,1.64787713,3411.0,3410.6,0.00625266]
[1641444416589,2.24787713,3411.0,3410.6,0.00625266]
[1641444416789,2.68118943,3411.0,3410.6,0.00625266]
[1641444416987,18.2,3410.8,3410.5,2.5e-05]
[1641444417188,5.71336901,3410.7,3410.5,2.5e-05]
[1641444417385,5.40167849,3410.7,3410.5,2.5e-05]
[1641444417587,0.73355,3410.3,3408.8,0.75]
[1641444417786,0.345,3410.2,3408.8,0.75]
[1641444418090,0.00170527,3410.9,3408.9,0.0096632]
[1641444418286,0.00170527,3410.9,3409.5,0.73321]
[1641444418492,0.00113685,3410.8,3410.3,1.49045548]
[1641444418689,0.00113685,3410.8,3409.6,0.31812591]
[1641444418889,1.21886969,3410.9,3410.4,0.00113685]
[1641444419089,0.00341054,3411.2,3409.7,0.00511581]
[1641444419090,1.13180186,3410.3,3409.7,0.00511581]
[1641444419636,0.00284212,3411.1,3409.7,0.00511581]
[1641444419837,0.00284212,3411.1,3409.9,1.46618]
[1641444420038,0.00227369,3411.0,3409.9,1.07808]
[1641444420237,4.0,3410.9,3410.0,0.00341054]
[1641444420437,4.00170527,3410.9,3410.0,0.05386306]
[1641444420636,0.00113685,3410.8,3410.0,0.05386306]
[1641444420836,0.00113685,3410.8,3410.1,0.00284212]
[1641444421037,1.22788665,3410.8,3410.1,0.00284212]
[1641444421240,1.22788665,3410.8,3410.0,0.30341054]
[1641444421438,0.00113685,3410.8,3410.0,0.30341054]
[1641444421638,0.00113685,3410.8,3410.2,0.73306]
[1641444422045,0.00113685,3410.8,3410.3,0.00170527]
[1641444422240,0.00113685,3410.8,3410.4,1.46577]
[1641444422439,0.00113685,3410.8,3410.4,1.77838771]
[1641444423085,0.00113685,3410.8,3410.6,1.46576]
[1641444424090,0.00113685,3410.8,3410.4,1.46575]
[1641444424302,0.00113685,3410.8,3410.3,0.73473527]
[1641444424496,0.00113685,3410.8,3410.7,5.49268449]
[1641444424690,0.00113685,3410.8,3410.4,0.00113685]
[1641444424893,0.00113685,3410.8,3410.4,0.00241069]
[1641444425192,0.00113685,3410.8,3410.3,0.63544069]
[1641444425393,0.00170527,3410.7,3410.3,0.93544069]
[1641444425597,0.00170527,3410.7,3410.5,1.32116923]
[1641444425793,0.00113685,3410.6,3410.5,1.32116923]
[1641444427140,4.0,3410.9,3410.5,1.32116923]
[1641444427538,0.00113685,3410.8,3410.5,1.32116923]
[1641444428238,1.0,3413.5,3410.5,1.32116923]
[1641444428239,0.012322,3413.2,3410.7,18.15]
[1641444428440,3.30614515,3413.7,3411.8,0.73271]
[1641444428441,11.4672,3413.4,3411.8,0.73271]
[1641444428641,0.00682108,3412.0,3411.8,0.73271]
[1641444429039,0.00625265,3411.9,3411.8,0.73271]
[1641444429243,1.76594515,3413.7,3411.9,12.4]
[1641444429439,1.76594515,3413.7,3412.0,4.16334855]
[1641444429644,1.76594515,3413.7,3412.7,0.73252]
[1641444429645,0.0096632,3413.6,3412.7,0.73252]
[1641444430039,1.21306131,3412.8,3412.0,5.46334855]
[1641444430242,1.12485394,3412.7,3411.9,1.46511]
[1641444430442,1.12940133,3412.7,3411.8,0.73266]
[1641444430685,1.0506108,3412.1,3411.8,0.73266]
[1641444430890,1.0506108,3412.1,3411.0,2.0]
[1641444431088,1.0506108,3412.1,3411.0,2.3]
[1641444431291,1.0506108,3412.1,3411.4,2.8972228]
[1641444431491,0.00454739,3412.7,3411.4,2.8972228]
[1641444431690,0.00454739,3412.7,3411.5,0.00227369]
[1641444431891,0.00397897,3412.6,3411.5,1.00227369]
[1641444432297,0.00341054,3412.5,3411.6,0.00170527]
[1641444432692,0.00284212,3412.4,3411.7,0.73275]
[1641444433093,0.09047367,3413.4,3411.8,16.56529]
[1641444433295,0.09047367,3413.4,3411.8,1.46529]
[1641444433493,0.00568423,3413.3,3411.9,0.0022737]
[1641444433693,0.00568423,3413.3,3411.8,0.00284212]
[1641444433993,0.00511581,3413.2,3411.8,0.00284212]
[1641444434192,0.00511581,3413.2,3412.0,1.28008908]
[1641444434437,0.09047367,3413.4,3412.2,0.73263]
[1641444434438,0.00454739,3413.1,3412.2,0.73263]
[1641444434842,0.00397896,3413.0,3412.2,0.73263]
[1641444435336,1.01332488,3412.8,3412.3,0.00083875]
[1641444435739,1.01332488,3412.8,3411.1,2.19794]
[1641444435740,19.61408,3412.1,3411.1,2.19794]
[1641444435940,1.2564838,3410.7,3410.2,2.93079]
[1641444436137,0.01260779,3411.9,3410.4,0.733]
[1641444436438,1.51165029,3411.8,3410.8,1.21698857]
[1641444436639,19.61408,3412.1,3410.8,1.21698857]
[1641444436841,19.61408,3412.1,3410.9,0.00682108]
[1641444437237,1.20888824,3412.0,3410.9,0.00682108]
[1641444437939,1.03594848,3411.3,3410.9,0.00682108]
[1641444438183,19.61408,3412.1,3410.9,0.00682108]
[1641444438788,19.61408,3412.1,3411.4,1.42777242]
[1641444438988,1.46408,3412.1,3411.4,1.42777242]
[1641444439189,1.46408,3412.1,3411.5,0.00341054]
[1641444439689,1.22784137,3411.8,3411.5,0.00341054]
[1641444440095,1.22784137,3411.8,3411.1,0.00568423]
[1641444440491,1.46408,3412.1,3411.3,1.30175394]
[1641444440894,1.46408,3412.1,3411.4,0.00397896]
[1641444441292,1.46408,3412.1,3411.1,0.00568423]
[1641444441490,1.46408,3412.1,3410.8,0.0073895]
[1641444441693,1.46408,3412.1,3410.8,0.73294]
[1641444442137,1.46408,3412.1,3411.2,1.26900324]
[1641444442441,0.3,3412.0,3411.3,0.00454739]
[1641444442646,1.02338284,3411.9,3411.3,0.00454739]
[1641444442837,1.16392732,3410.8,3410.3,0.01023162]
[1641444443036,4.02453804,3412.0,3410.3,0.01023162]
[1641444443237,0.3,3412.0,3410.4,1.42591903]
[1641444443438,0.3,3412.0,3410.4,2.15893903]
[1641444443840,1.46408,3412.1,3410.5,0.733]
[1641444444043,1.46408,3412.1,3410.6,1.46583]
[1641444444243,2.4124157,3411.8,3410.6,1.47435635]
[1641444444444,2.4124157,3411.8,3410.7,0.74092793]
[1641444444843,2.4124157,3411.8,3410.8,0.0073895]
[1641444445887,2.4124157,3411.8,3410.9,0.00092456]
[1641444446289,2.4124157,3411.8,3411.0,0.00625266]
[1641444446490,1.46408,3412.1,3411.0,0.00625266]
[1641444446891,1.46408,3412.1,3411.0,0.73916266]
[1641444447291,1.46408,3412.1,3411.1,0.00568423]
[1641444447691,1.46408,3412.1,3411.4,1.4093547]
[1641444447897,1.46408,3412.1,3411.0,0.00625266]
[1641444448093,1.46408,3412.1,3411.5,0.00341054]
[1641444448295,1.46408,3412.1,3411.2,0.73285]
[1641444448693,1.46408,3412.1,3411.3,0.00454739]
[1641444450544,1.46408,3412.1,3411.5,1.46558]
[1641444450939,1.46408,3412.1,3411.6,0.00284212]
[1641444451543,2.55828094,3412.5,3411.6,1.06776364]
[1641444451742,0.00341054,3412.7,3411.6,1.06776364]
[1641444451743,0.00341054,3412.7,3412.1,0.01203262]
[1641444451943,0.00170527,3412.4,3412.1,0.01203262]
[1641444452143,1.95302519,3414.3,3412.2,19.3168]
[1641444452340,0.01136847,3414.1,3412.5,0.8718]
[1641444452640,1.95302519,3414.3,3413.6,0.8718]
[1641444452641,0.00909478,3414.0,3413.6,0.8718]
[1641444453100,0.00852635,3413.9,3413.6,0.8718]
[1641444453396,1.95302519,3414.3,3413.8,18.9218]
[1641444453598,1.95302519,3414.3,3414.0,0.8718]
[1641444453799,1.95302519,3414.3,3414.2,9.4718]
[1641444454000,13.2069,3415.8,3414.2,10.3816]
[1641444454200,3.9154,3415.8,3414.3,0.8718]
[1641444454500,3.16993394,3416.5,3414.3,0.8718]
[1641444454700,3.93813394,3416.5,3414.3,4.06783]
[1641444454903,0.0193264,3415.8,3415.4,0.8718]
[1641444455101,0.01255809,3415.7,3415.4,0.8718]
[1641444455298,0.03131607,3415.7,3415.4,0.8718]
[1641444455504,0.01818955,3415.6,3415.4,0.8718]
[1641444455903,0.01762113,3415.5,3415.4,0.8718]
[1641444456499,0.01762113,3415.5,3415.4,7.9448687]
[1641444456701,0.01292459,3417.0,3415.6,0.8718]
[1641444456944,7.6446,3417.6,3416.3,0.8718]
[1641444456945,3.9499,3417.3,3416.3,0.8718]
[1641444457141,6.158,3417.6,3416.3,0.8718]
[1641444457142,3.7209,3417.6,3416.3,0.8718]
[1641444457346,0.00284212,3417.0,3416.5,0.8718]
[1641444457541,0.01289103,3418.0,3417.6,1.32092768]
[1641444457746,2.00474726,3418.1,3417.6,2.19272768]
[1641444458144,1.95302519,3418.1,3417.6,2.19272768]
[1641444458548,3.8587,3419.8,3417.6,2.19272768]
[1641444458752,7.31295476,3419.0,3418.5,0.8718]
[1641444459346,5.16584888,3418.6,3418.5,2.33472]
[1641444459547,1.82747301,3419.7,3418.5,2.33472]
[1641444459752,0.00738951,3419.3,3418.7,0.8718]
[1641444460147,0.00682109,3419.2,3418.7,0.8718]
[1641444460611,1.253202,3420.0,3419.6,0.8718]
[1641444460809,1.30470657,3419.5,3419.4,0.73115]
[1641444461011,1.28627044,3419.4,3418.8,0.0022737]
[1641444461407,1.28740728,3419.4,3418.4,0.7314438]
[1641444461607,1.28740728,3419.4,3418.8,1.46285]
[1641444461809,1.47836846,3419.3,3418.8,1.46285]
[1641444462007,1.47836846,3419.3,3418.9,0.00170527]
[1641444462209,1.77836846,3419.3,3418.9,0.00170527]
[1641444462409,2.77836846,3419.3,3418.9,0.00170527]
[1641444463717,2.77836846,3419.3,3418.7,0.00284212]
[1641444464341,5.83300761,3419.3,3418.7,4.212e-05]
[1641444464645,0.41898739,3419.2,3418.7,4.212e-05]
[1641444464844,19.44456494,3418.8,3418.7,4.212e-05]
[1641444465041,21.08956494,3418.8,3418.0,0.00402109]
[1641444465240,21.08956494,3418.8,3418.0,1.46722109]
[1641444465442,1.0,3418.7,3418.0,1.46722109]
[1641444465640,0.345,3418.6,3418.3,0.73159]
[1641444465841,1.3392258,3418.4,3418.3,0.73159]
[1641444466244,0.3,3418.4,3418.3,0.73159]
[1641444466442,0.645,3418.6,3418.3,0.73159]
[1641444466641,0.345,3418.6,3418.3,1.46315]
[1641444466840,0.345,3418.6,3418.4,1.46464739]
[1641444467240,0.345,3418.6,3418.5,0.00117897]
[1641444467442,0.00223157,3419.1,3418.5,0.00117897]
[1641444467645,0.00223157,3419.1,3418.7,0.73131]
[1641444467841,3.6874,3420.4,3418.8,10.41248]
[1641444468109,6.05732411,3421.0,3418.8,8.95113685]
[1641444468110,5.98982411,3421.0,3418.8,8.95113685]
[1641444468290,0.00227369,3419.4,3419.1,0.01279274]
[1641444468491,1.206698,3420.6,3419.8,1.20923808]
[1641444468696,1.206698,3420.6,3420.1,0.73101]
[1641444468899,0.00625266,3420.5,3420.1,0.73101]
[1641444469094,1.29945937,3421.7,3420.1,0.73101]
[1641444469294,1.29945937,3421.7,3420.2,0.00170527]
[1641444469494,0.00284212,3421.0,3420.2,0.00170527]
[1641444469696,0.00284212,3421.0,3420.4,2.19248]
[1641444469894,1.33612415,3421.4,3420.7,1.46165]
[1641444470101,6.17,3421.9,3421.3,0.73083]
[1641444470296,4.11387522,3422.6,3421.0,0.7307964]
[1641444470297,0.31225963,3422.6,3421.0,0.7307964]
[1641444470495,5.64482411,3422.8,3421.5,0.01266958]
[1641444470696,0.00397897,3422.4,3421.5,0.01266958]
[1641444470897,5.64482411,3422.8,3421.1,0.00341054]
[1641444470898,5.59880308,3422.8,3422.0,0.73059]
[1641444471096,5.59880308,3422.8,3422.5,0.73051]
[1641444471296,0.00170527,3422.7,3422.5,0.73051]
[1641444471697,6.17,3423.3,3422.5,0.73051]
[1641444471945,5.6250872,3423.6,3422.5,0.73051]
[1641444472144,0.00284212,3423.2,3422.5,0.73051]
[1641444472344,0.00284212,3423.2,3422.8,0.73037]
[1641444472547,0.00227369,3423.1,3422.9,1.40859452]
[1641444472744,5.59880308,3423.6,3423.2,0.73028]
[1641444472948,7.32579608,3424.1,3423.5,1.36286398]
[1641444473147,7.31295476,3424.1,3423.5,1.36286398]
[1641444473346,2.4924,3425.1,3423.5,1.36286398]